bitfinex/quotes_SOLUSD_20240712
["timestamp","ask_amount","ask_price","bid_price","bid_amount"]
[1720749701885,16.0361,136.59,136.54,7.86726245]
[1720749702069,16.0361,136.59,136.54,7.3237]
[1720749702257,16.0361,136.59,136.55,7.86637336]
[1720749703070,16.0361,136.59,136.54,7.3238]
[1720749704420,16.0361,136.59,136.53,25.6349]
[1720749704562,0.17,136.58,136.5,18.3139]
[1720749704874,20.34,136.58,136.5,18.3139]
[1720749705063,20.17,136.58,136.5,18.3139]
[1720749705581,7.3224,136.57,136.5,25.6398]
[1720749705871,27.4918,136.58,136.51,7.3253]
[1720749706469,20.17,136.58,136.52,7.3248]
[1720749707082,27.4917,136.58,136.51,7.3253]
[1720749707285,7.4923,136.57,136.5,25.6398]
[1720749707458,15.11944441,136.57,136.5,25.6398]
[1720749708798,7.79714441,136.57,136.51,7.3254]
[1720749709503,42.3584,136.56,136.47,18.3185]
[1720749709699,42.3584,136.56,136.5,25.6399]
[1720749709887,42.3584,136.56,136.46,36.6402]
[1720749710282,49.6811,136.56,136.49,18.3158]
[1720749710609,7.4933,136.55,136.49,18.3158]
[1720749710772,7.4933,136.55,136.46,18.3193]
[1720749710773,15.5933,136.53,136.46,18.3193]
[1720749711082,20.34,136.52,136.46,18.3193]
[1720749711277,27.6651,136.52,136.45,7.3285]
[1720749712283,15.831,136.5,136.43,18.3237]
[1720749712490,15.831,136.5,136.44,7.3288]
[1720749712690,15.831,136.5,136.45,7.3284]
[1720749712889,15.831,136.5,136.47,7.3271]
[1720749713091,15.831,136.5,136.48,7.3269]
[1720749713289,16.0221,136.53,136.44,38.85]
[1720749713498,16.0221,136.53,136.45,0.17]
[1720749713697,16.0221,136.53,136.49,18.3159]
[1720749714001,16.0221,136.53,136.49,25.6423]
[1720749714786,16.0221,136.53,136.5,7.3259]
[1720749715803,16.0221,136.53,136.51,18.3132]
[1720749717279,16.385,136.56,136.51,18.3132]
[1720749717699,16.385,136.59,136.53,18.3102]
[1720749718295,16.385,136.59,136.54,7.3237]
[1720749718702,16.385,136.59,136.55,7.3232]
[1720749719212,16.385,136.59,136.54,7.3236]
[1720749719426,16.385,136.59,136.53,25.6344]
[1720749719716,23.7062,136.59,136.52,7.3249]
[1720749719881,23.7062,136.59,136.51,7.3253]
[1720749720078,20.0,136.58,136.5,25.6404]
[1720749720309,0.17,136.57,136.5,25.6404]
[1720749720482,7.6623,136.57,136.5,18.3144]
[1720749720684,0.17,136.57,136.51,7.325]
[1720749720918,0.17,136.57,136.5,25.6402]
[1720749721125,7.6626,136.57,136.5,25.6402]
[1720749721417,22.3899,136.55,136.49,7.3263]
[1720749721917,22.3899,136.55,136.49,18.3157]
[1720749722116,22.3899,136.55,136.51,7.3253]
[1720749722299,22.3899,136.55,136.5,7.3258]
[1720749722816,22.3899,136.55,136.51,7.3252]
[1720749723187,22.3899,136.55,136.5,7.3258]
[1720749723726,22.3899,136.55,136.48,7.3269]
[1720749724303,29.7135,136.55,136.48,7.3269]
[1720749725117,29.7135,136.55,136.47,7.3275]
[1720749725118,27.494,136.54,136.47,7.3275]
[1720749725486,27.494,136.54,136.46,25.6473]
[1720749725693,27.494,136.54,136.47,7.3275]
[1720749725907,20.0,136.54,136.48,18.3171]
[1720749726297,20.0,136.54,136.49,7.3264]
[1720749726512,20.0,136.54,136.49,7.3263]
[1720749727037,20.0,136.54,136.5,7.3259]
[1720749728219,20.0,136.54,136.49,7.3264]
[1720749728401,20.0,136.54,136.48,18.3171]
[1720749729491,20.0,136.54,136.46,7.3281]
[1720749729694,0.17,136.53,136.46,7.3281]
[1720749729922,0.34,136.53,136.46,7.3281]
[1720749730722,7.6644,136.53,136.46,7.3281]
[1720749730927,20.0,136.52,136.46,7.3281]
[1720749731693,20.0,136.52,136.47,25.6459]
[1720749731890,16.1785,136.5,136.45,7.3286]
[1720749732193,16.1785,136.5,136.44,25.6514]
[1720749732401,6.3188,136.49,136.44,18.3224]
[1720749732829,6.3188,136.49,136.45,7.3286]
[1720749733504,6.3188,136.49,136.44,18.3224]
[1720749733703,6.3188,136.49,136.46,18.3199]
[1720749734013,16.1785,136.5,136.47,8.42926652]
[1720749734396,16.1785,136.5,136.46,25.6479]
[1720749734590,16.1785,136.5,136.45,7.3285]
[1720749735000,16.1785,136.5,136.43,18.3237]
[1720749735216,16.1785,136.5,136.44,1.27293582]
[1720749735531,7.3276,136.47,136.4,25.6592]
[1720749735696,22.6901,136.46,136.39,7.3318]
[1720749735894,20.34,136.45,136.37,25.6639]
[1720749736095,20.34,136.45,136.39,7.3318]
[1720749736296,20.34,136.45,136.4,7.3312]
[1720749736522,20.0,136.45,136.4,7.3312]
[1720749736723,20.0,136.45,136.41,7.3306]
[1720749736897,15.3619,136.46,136.42,7.33]
[1720749737319,15.3619,136.46,136.41,18.3264]
[1720749737522,15.3619,136.46,136.41,25.657]
[1720749737705,15.3619,136.46,136.41,25.6571]
[1720749737898,15.3619,136.46,136.41,18.3264]
[1720749738607,15.3619,136.46,136.41,25.6571]
[1720749738833,15.3619,136.46,136.41,18.3264]
[1720749738999,0.34,136.45,136.39,7.3317]
[1720749739505,7.6686,136.45,136.38,25.6623]
[1720749740722,0.34,136.45,136.39,7.3318]
[1720749741015,20.34,136.45,136.39,7.3318]
[1720749741220,20.34,136.45,136.38,25.6623]
[1720749741606,27.6688,136.45,136.38,25.6623]
[1720749742496,27.6688,136.45,136.38,18.3301]
[1720749742718,6.0725,136.42,136.35,25.6684]
[1720749743019,16.3358,136.4,136.33,7.3346]
[1720749743222,16.3358,136.4,136.32,25.6739]
[1720749743406,20.34,136.39,136.33,7.335]
[1720749743607,20.17,136.39,136.34,7.3344]
[1720749743821,20.17,136.39,136.32,18.3384]
[1720749743822,16.3358,136.4,136.35,7.334]
[1720749744320,16.3358,136.4,136.31,28.96]
[1720749744527,16.3358,136.4,136.32,45.34]
[1720749744921,16.3358,136.4,136.35,7.3339]
[1720749745302,16.3358,136.4,136.34,7.3344]
[1720749745505,16.3358,136.4,136.35,18.3348]
[1720749745831,16.3358,136.4,136.36,7.3333]
[1720749746224,7.332,136.39,136.32,18.3389]
[1720749746534,7.3325,136.38,136.31,7.336]
[1720749746720,20.34,136.37,136.31,7.336]
[1720749746902,27.673,136.37,136.3,7.3367]
[1720749747103,7.673,136.37,136.3,7.3367]
[1720749747333,20.0,136.36,136.3,7.3367]
[1720749747709,21.9077,136.35,136.3,7.3367]
[1720749748220,21.9077,136.35,136.31,7.336]
[1720749748423,21.9077,136.35,136.3,7.3366]
[1720749748721,21.9077,136.35,136.31,7.3361]
[1720749749444,21.9077,136.35,136.32,7.3355]
[1720749749634,7.63083835,136.38,136.3,10.0]
[1720749749833,16.1617,136.39,136.35,25.6685]
[1720749751014,16.1617,136.39,136.32,36.6783]
[1720749751219,16.1617,136.39,136.34,7.3345]
[1720749752028,16.1617,136.39,136.35,18.3347]
[1720749752343,16.1617,136.39,136.34,7.3344]
[1720749752933,16.1617,136.39,136.35,7.3338]
[1720749753319,16.1617,136.39,136.37,7.3325]
[1720749753523,16.1029,136.43,136.39,18.3293]
[1720749753718,16.1029,136.43,136.4,7.3309]
[1720749754246,16.1029,136.43,136.39,18.3293]
[1720749754460,16.1029,136.43,136.39,25.6611]
[1720749755239,16.1029,136.43,136.36,18.333]
[1720749755424,16.1029,136.43,136.38,7.3324]
[1720749755625,16.1029,136.43,136.37,7.3328]
[1720749755941,16.1029,136.43,136.36,25.6663]
[1720749756442,16.1029,136.43,136.36,18.333]
[1720749756754,72.6703,136.42,136.35,7.3339]
[1720749756924,20.34,136.42,136.33,18.337]
[1720749757124,27.5004,136.42,136.35,7.3336]
[1720749757328,20.0,136.42,136.35,18.3345]
[1720749758447,20.0,136.42,136.38,7.3324]
[1720749758624,20.0,136.42,136.32,36.6783]
[1720749758830,7.3309,136.41,136.34,25.6699]
[1720749759829,20.0,136.42,136.34,18.3355]
[1720749760027,20.0,136.42,136.36,7.3333]
[1720749760231,16.4429,136.43,136.35,7.334]
[1720749760552,20.17,136.42,136.35,7.3336]
[1720749760754,20.0,136.42,136.37,7.3329]
[1720749761233,20.0,136.42,136.36,25.6665]
[1720749761549,20.0,136.42,136.36,18.3331]
[1720749761733,27.3303,136.42,136.35,7.3336]
[1720749761931,20.0,136.42,136.33,25.6715]
[1720749762148,0.34,136.41,136.33,25.6715]
[1720749762349,7.3314,136.4,136.33,25.6715]
[1720749762756,0.34,136.41,136.34,7.3345]
[1720749763051,0.34,136.41,136.35,7.334]
[1720749763241,27.3304,136.42,136.35,25.6686]
[1720749763242,27.3306,136.42,136.35,25.6686]
[1720749763554,0.34,136.41,136.35,25.6686]
[1720749763757,23.4326,136.43,136.36,7.3334]
[1720749764055,27.5003,136.42,136.35,25.6687]
[1720749764439,27.5003,136.42,136.35,18.3347]
[1720749764440,20.0,136.42,136.35,18.3347]
[1720749764636,20.0,136.42,136.37,7.3329]
[1720749764841,20.0,136.42,136.36,7.3334]
[1720749765034,27.3304,136.42,136.35,25.6686]
[1720749765257,27.3304,136.42,136.35,18.3347]
[1720749765462,20.0,136.42,136.35,18.3347]
[1720749765958,20.0,136.42,136.36,7.3333]
[1720749766334,27.3305,136.42,136.35,25.6686]
[1720749766549,20.0,136.42,136.35,18.3347]
[1720749766766,7.3308,136.41,136.35,18.3347]
[1720749766947,27.3304,136.42,136.35,25.6687]
[1720749767459,27.3304,136.42,136.29,32.2925]
[1720749767460,7.3313,136.4,136.33,7.335]
[1720749767653,7.671,136.41,136.33,7.335]
[1720749768035,22.6203,136.4,136.33,7.335]
[1720749768233,6.3667,136.39,136.33,7.335]
[1720749768471,6.3667,136.39,136.36,7.3335]
[1720749770067,15.289,136.4,136.36,18.3335]
[1720749770264,15.289,136.4,136.38,7.3324]
[1720749770457,15.289,136.4,136.36,25.6665]
[1720749771243,15.289,136.4,136.36,18.3335]
[1720749771668,15.289,136.4,136.37,7.3328]
[1720749771879,15.289,136.4,136.36,25.6668]
[1720749772046,15.289,136.4,136.37,7.3326]
[1720749772251,15.289,136.4,136.38,7.3321]
[1720749772975,22.8114,136.44,136.39,7.3319]
[1720749773278,16.4447,136.44,136.39,10.0]
[1720749773443,6.5704,136.47,136.43,7.3293]
[1720749773638,6.5704,136.47,136.4,45.34]
[1720749773639,6.5704,136.47,136.44,7.3291]
[1720749773844,6.5704,136.47,136.43,7.3296]
[1720749774069,16.5277,136.48,136.41,10.0]
[1720749774275,16.5277,136.48,136.42,46.80537624]
[1720749774566,16.5277,136.48,136.46,25.648]
[1720749774878,16.5277,136.48,136.46,18.3199]
[1720749775740,16.5277,136.48,136.46,25.648]
[1720749776776,16.5277,136.48,136.45,7.3283]
[1720749777002,16.5277,136.48,136.44,7.329]
[1720749777361,16.5277,136.48,136.45,7.3285]
[1720749777977,16.5277,136.48,136.46,7.3276]
[1720749778145,16.5277,136.48,136.47,7.3276]
[1720749778966,16.5277,136.48,136.45,18.3212]
[1720749779184,16.5277,136.48,136.45,25.6494]
[1720749779475,16.5277,136.48,136.46,7.328]
[1720749779672,15.1761,136.52,136.47,7.3275]
[1720749782068,15.1761,136.52,136.47,18.3182]
[1720749782375,15.1761,136.52,136.48,7.3269]
[1720749782873,15.1761,136.52,136.48,8.79201826]
[1720749783297,15.1761,136.52,136.47,25.6457]
[1720749786072,15.1761,136.52,136.44,18.3221]
[1720749786267,29.87955122,136.51,136.41,18.3263]
[1720749786593,7.3262,136.5,136.43,7.3296]
[1720749787494,20.0,136.51,136.45,7.3281]
[1720749787792,20.0,136.51,136.47,7.3275]
[1720749788294,20.0,136.51,136.45,18.3213]
[1720749789396,20.0,136.51,136.41,10.0]
[1720749789612,15.1761,136.52,136.47,18.3187]
[1720749789971,15.1761,136.52,136.47,25.6461]
[1720749790172,15.1761,136.52,136.44,18.3223]
[1720749790394,0.34,136.51,136.44,18.3223]
[1720749790703,82.20510091,136.51,136.44,25.6515]
[1720749791001,20.34,136.51,136.45,7.3286]
[1720749792017,20.0,136.51,136.45,7.3286]
[1720749792302,20.0,136.51,136.44,25.6513]
[1720749792597,16.1796,136.49,136.43,7.3296]
[1720749793301,16.1796,136.49,136.46,7.3281]
[1720749793600,16.1796,136.49,136.42,10.0]
[1720749793601,16.1796,136.49,136.47,7.3275]
[1720749793809,16.1796,136.49,136.48,7.327]
[1720749793979,16.1796,136.49,136.47,18.3181]
[1720749794492,16.14296996,136.49,136.47,18.3181]
[1720749794699,16.14296996,136.49,136.46,7.3279]
[1720749795077,16.14296996,136.49,136.45,7.3285]
[1720749795279,16.14296996,136.49,136.44,18.3218]
[1720749795799,16.14296996,136.49,136.45,7.3283]
[1720749796395,16.14296996,136.49,136.44,25.6509]
[1720749796600,16.14296996,136.49,136.45,7.3286]
[1720749796778,16.14296996,136.49,136.44,25.6508]
[1720749797600,16.14296996,136.49,136.45,7.3286]
[1720749797784,16.14296996,136.49,136.46,7.328]
[1720749798380,16.14296996,136.49,136.45,7.3285]
[1720749800102,16.14296996,136.49,136.46,7.3281]
[1720749801592,16.14296996,136.49,136.45,7.3285]
[1720749802679,16.14296996,136.49,136.46,7.3281]
[1720749802879,16.14296996,136.49,136.47,7.3273]
[1720749803288,7.62061699,136.48,136.47,7.3273]
[1720749804387,7.62061699,136.48,136.46,18.3202]
[1720749804388,7.62061699,136.48,136.46,25.6481]
[1720749804593,7.62061699,136.48,136.46,18.3202]
[1720749805410,7.62061699,136.48,136.4,75.5742]
[1720749805594,7.62061699,136.48,136.46,7.328]
[1720749806613,7.62061699,136.48,136.47,7.3276]
[1720749807397,7.62061699,136.48,136.46,18.3196]
[1720749807902,7.62061699,136.48,136.46,25.6473]
[1720749808705,7.62061699,136.48,136.47,7.3276]
[1720749809478,7.62061699,136.48,136.47,7.4976]
[1720749809683,16.433,136.54,136.5,7.3255]
[1720749809998,16.433,136.54,136.51,7.3253]
[1720749810307,16.433,136.54,136.49,18.315]
[1720749810611,16.433,136.54,136.51,7.3251]
[1720749810910,16.433,136.54,136.49,25.6413]
[1720749811202,16.433,136.54,136.49,18.315]
[1720749811709,16.433,136.54,136.46,47.2394]
[1720749811880,16.433,136.54,136.48,7.3265]
[1720749812891,16.433,136.54,136.49,7.3264]
[1720749813305,16.433,136.54,136.5,7.3259]
[1720749813520,16.433,136.54,136.51,7.3253]
[1720749813819,16.433,136.54,136.5,25.6404]
[1720749814202,16.433,136.54,136.5,18.3146]
[1720749815930,13.80852448,136.56,136.53,7.3239]
[1720749815931,7.62052448,136.56,136.53,7.3239]
[1720749816128,16.656,136.6,136.53,7.3239]
[1720749816415,16.85638538,136.59,136.52,18.3113]
[1720749816719,31.59612891,136.6,136.52,25.6358]
[1720749816916,9.53491729,136.59,136.52,25.6358]
[1720749817106,31.59612891,136.6,136.52,25.6358]
[1720749817288,20.17,136.59,136.52,25.6358]
[1720749817822,27.4912,136.59,136.52,25.6358]
[1720749819213,20.17,136.59,136.52,25.6358]
[1720749819401,0.17,136.58,136.5,7.3258]
[1720749819717,15.3327,136.56,136.5,7.3258]
[1720749820924,15.3327,136.56,136.51,7.3253]
[1720749823422,15.3327,136.56,136.51,18.3132]
[1720749823724,15.3327,136.56,136.51,25.6385]
[1720749824398,15.3327,136.56,136.52,7.3248]
[1720749824825,15.3327,136.56,136.51,25.6384]
[1720749825121,15.3327,136.56,136.51,18.3132]
[1720749825626,15.3327,136.56,136.5,7.3258]
[1720749826612,14.8327,136.56,136.5,7.3258]
[1720749827106,14.8327,136.56,136.51,7.3254]
[1720749828504,14.8327,136.56,136.5,18.3147]
[1720749828726,22.1557,136.56,136.5,18.3147]
[1720749828904,14.8327,136.56,136.5,18.3147]
[1720749829105,14.8327,136.56,136.5,25.6404]
[1720749829825,14.8327,136.56,136.51,7.3254]
[1720749830523,14.8327,136.56,136.52,7.3248]
[1720749832048,14.8327,136.56,136.53,7.3243]
[1720749832219,14.8327,136.56,136.53,8.78897742]
[1720749832427,14.8327,136.56,136.53,1.46467742]
[1720749835032,7.3211,136.59,136.53,1.46467742]
[1720749835235,34.45,136.58,136.53,15.91467742]
[1720749836333,14.45,136.57,136.53,1.46467742]
[1720749838130,20.0,136.58,136.49,18.3154]
[1720749838431,30.197,136.54,136.49,40.0917]
[1720749839839,30.197,136.54,136.5,7.3259]
[1720749840135,15.747,136.54,136.5,21.7759]
[1720749841212,30.197,136.54,136.49,25.6417]
[1720749841412,14.45,136.5,136.46,18.3194]
[1720749841607,14.45,136.49,136.46,18.3194]
[1720749842319,14.45,136.49,136.46,25.6475]
[1720749842819,14.45,136.48,136.44,7.3291]
[1720749843022,14.45,136.47,136.43,25.6534]
[1720749843221,14.45,136.46,136.43,25.6534]
[1720749843735,14.45,136.45,136.44,7.3292]
[1720749843946,14.45,136.47,136.44,7.3292]
[1720749844242,14.45,136.48,136.45,7.3286]
[1720749844642,6.4623,136.49,136.45,7.3286]
[1720749844939,16.2641,136.5,136.45,7.3286]
[1720749845530,16.2641,136.5,136.44,7.3291]
[1720749845731,16.2641,136.5,136.45,7.3285]
[1720749846243,16.2641,136.5,136.43,25.6531]
[1720749846420,16.2641,136.5,136.43,18.3237]
[1720749846821,16.2641,136.5,136.45,7.3282]
[1720749848324,7.62314303,136.51,136.45,18.3212]
[1720749848539,15.1025,136.53,136.45,18.3212]
[1720749848743,0.34,136.52,136.45,18.3212]
[1720749849133,0.34,136.52,136.46,7.3279]
[1720749849540,20.34,136.52,136.46,7.3279]
[1720749850044,20.17,136.52,136.46,7.3279]
[1720749850238,22.72740259,136.53,136.44,25.6659]
[1720749850448,22.72740259,136.53,136.49,7.3261]
[1720749850644,22.4271,136.53,136.45,63.3206]
[1720749850845,7.3252,136.52,136.45,18.3206]
[1720749851054,7.3262,136.5,136.42,18.3247]
[1720749851231,7.3262,136.5,136.42,25.6546]
[1720749851429,7.3262,136.5,136.43,7.3297]
[1720749851948,7.6655,136.51,136.43,7.3297]
[1720749852150,20.0,136.5,136.43,7.3297]
[1720749852442,7.6655,136.51,136.44,7.329]
[1720749852628,20.0,136.5,136.44,7.329]
[1720749853148,28.93,136.52,136.46,7.328]
[1720749853336,22.72652357,136.53,136.44,15.949]
[1720749853650,30.05102357,136.53,136.46,25.648]
[1720749853822,9.5385526,136.52,136.46,25.648]
[1720749854020,30.05102357,136.53,136.46,18.32]
[1720749854224,9.5385541,136.52,136.46,18.32]
[1720749854449,30.22102357,136.53,136.46,18.32]
[1720749854627,9.87872763,136.52,136.46,25.648]
[1720749854828,0.34,136.52,136.46,25.648]
[1720749855050,27.6649,136.52,136.46,18.32]
[1720749855349,9.53898274,136.51,136.45,7.3284]
[1720749855535,20.34,136.52,136.45,7.3284]
[1720749855733,9.53895778,136.51,136.44,7.329]
[1720749856038,20.34,136.5,136.44,7.329]
[1720749856531,0.34,136.5,136.44,7.329]
[1720749856736,20.34,136.5,136.44,7.329]
[1720749856942,0.17,136.5,136.45,7.3284]
[1720749857133,0.17,136.51,136.45,7.3284]
[1720749857332,0.17,136.51,136.46,7.3281]
[1720749857651,0.34,136.51,136.45,7.3285]
[1720749858026,0.34,136.51,136.44,7.329]
[1720749858222,0.34,136.51,136.45,7.3285]
[1720749859325,0.34,136.51,136.43,25.653]
[1720749859554,0.34,136.51,136.43,18.3238]
[1720749860645,7.6654,136.51,136.44,7.3291]
[1720749861159,27.62383464,136.5,136.43,18.3238]
[1720749861448,0.34,136.49,136.43,18.3238]
[1720749861856,7.6666,136.49,136.43,18.3238]
[1720749862033,20.0,136.48,136.43,25.6533]
[1720749862535,20.34,136.49,136.43,25.6533]
[1720749863348,22.9539,136.48,136.41,7.3307]
[1720749863544,0.34,136.47,136.41,7.3307]
[1720749866647,0.34,136.47,136.42,7.3303]
[1720749867646,15.6268,136.48,136.43,7.3297]
[1720749867951,15.6268,136.48,136.44,7.3291]
[1720749868454,20.17,136.47,136.39,18.3294]
[1720749868635,65.17,136.47,136.39,18.3294]
[1720749868824,72.4979,136.47,136.39,25.6611]
[1720749869237,72.4979,136.47,136.4,7.3312]
[1720749869442,0.17,136.46,136.4,7.3312]
[1720749870349,0.17,136.46,136.41,7.3304]
[1720749870549,20.17,136.47,136.41,7.3304]
[1720749871541,7.62411653,136.46,136.41,7.3304]
[1720749871934,7.62411653,136.46,136.42,7.33]
[1720749872633,7.62411653,136.46,136.41,25.6571]
[1720749873859,7.62411653,136.46,136.41,18.3264]
[1720749875129,15.6268,136.48,136.43,7.3293]
[1720749875333,15.6268,136.48,136.44,7.329]
[1720749875539,15.6268,136.48,136.43,25.6535]
[1720749875942,15.6268,136.48,136.42,7.3302]
[1720749876151,22.9542,136.48,136.41,7.3307]
[1720749876352,0.34,136.47,136.41,7.3307]
[1720749876943,15.6268,136.48,136.42,18.3255]
[1720749877168,15.6268,136.48,136.43,7.3297]
[1720749878348,15.6268,136.48,136.41,7.3305]
[1720749878548,0.34,136.47,136.42,7.3302]
[1720749880663,14.47,136.46,136.42,7.3302]
[1720749880867,14.47,136.47,136.43,7.3297]
[1720749881753,14.47,136.47,136.42,21.8]
[1720749882563,15.6268,136.48,136.44,7.3292]
[1720749882866,30.0968,136.48,136.44,7.3292]
[1720749883774,15.6268,136.48,136.44,14.47]
[1720749883945,7.62285679,136.49,136.46,7.3279]
[1720749885145,7.62285679,136.49,136.48,7.327]
[1720749885460,16.5628,136.52,136.48,7.327]
[1720749885461,16.5628,136.52,136.5,7.3255]
[1720749886548,15.3954,136.55,136.5,7.3255]
[1720749886753,15.3954,136.55,136.51,18.3132]
[1720749887059,15.3954,136.55,136.51,25.6385]
[1720749891182,15.3954,136.55,136.51,18.3132]
[1720749891478,15.3954,136.55,136.5,7.3259]
[1720749891479,15.3954,136.55,136.49,7.3261]
[1720749892387,22.7187,136.55,136.48,25.6437]
[1720749892559,0.34,136.54,136.48,25.6437]
[1720749894190,0.34,136.54,136.5,7.3258]
[1720749894555,15.3954,136.55,136.5,7.3258]
[1720749895075,15.3954,136.55,136.51,7.3254]
[1720749895751,15.3954,136.55,136.47,18.3181]
[1720749895949,15.3954,136.55,136.49,7.3264]
[1720749896360,15.3954,136.55,136.5,7.326]
[1720749896882,15.3954,136.55,136.51,7.3253]
[1720749898658,15.3954,136.55,136.49,25.6417]
[1720749900191,15.3954,136.55,136.49,18.3157]
[1720749900391,15.3954,136.55,136.51,7.3251]
[1720749900887,15.3954,136.55,136.49,18.3157]
[1720749901071,15.3954,136.55,136.52,7.3248]
[1720749901269,15.3954,136.55,136.47,10.0]
[1720749901270,15.3954,136.55,136.51,18.3123]
[1720749901577,15.3954,136.55,136.52,7.3248]
[1720749901882,15.3954,136.55,136.51,18.3123]
[1720749901883,15.3954,136.55,136.51,25.6376]
[1720749902269,15.3954,136.55,136.51,18.3123]
[1720749902585,15.3954,136.55,136.5,7.3258]
[1720749903988,15.3954,136.55,136.52,7.3248]
[1720749904181,15.3954,136.55,136.53,7.3239]
[1720749905096,15.3954,136.55,136.53,7.3243]
[1720749905794,15.3954,136.55,136.52,25.6367]
[1720749907585,15.3954,136.55,136.53,7.3241]
[1720749907785,15.3954,136.55,136.52,25.6368]
[1720749908309,15.3954,136.55,136.52,18.312]
[1720749908601,29.8454,136.55,136.52,25.6369]
[1720749909373,15.3954,136.55,136.52,25.6369]
[1720749910499,29.8454,136.55,136.49,18.3155]
[1720749910812,14.45,136.53,136.49,18.3155]
[1720749911095,14.45,136.52,136.49,18.3155]
[1720749911481,14.45,136.52,136.49,25.6415]
[1720749911879,14.45,136.53,136.5,7.3258]
[1720749912196,14.45,136.53,136.51,7.3253]
[1720749912404,14.45,136.54,136.51,18.3129]
[1720749913981,14.45,136.54,136.51,25.6383]
[1720749916905,15.3954,136.55,136.51,25.6383]
[1720749917082,14.45,136.54,136.51,25.6383]
[1720749917806,29.8454,136.55,136.53,7.3243]
[1720749918011,15.3954,136.55,136.53,7.3243]
[1720749918500,14.45,136.56,136.53,7.3243]
[1720749920082,14.45,136.56,136.52,8.78223969]
[1720749920286,15.2591,136.58,136.52,38.08203969]
[1720749920494,15.2591,136.58,136.56,7.3226]
[1720749920803,29.7091,136.58,136.55,25.6311]
[1720749921409,29.7091,136.58,136.55,18.3078]
[1720749922078,15.2591,136.58,136.55,25.6306]
[1720749922283,14.45,136.59,136.56,7.3225]
[1720749922505,14.45,136.59,136.55,25.6309]
[1720749922805,14.45,136.58,136.55,18.3078]
[1720749923892,14.45,136.58,136.55,25.6309]
[1720749924494,14.45,136.58,136.53,66.774]
[1720749925005,14.45,136.56,136.52,25.6361]
[1720749925207,16.5624,136.55,136.5,7.3255]
[1720749925386,14.45,136.53,136.5,7.3255]
[1720749926517,14.45,136.54,136.51,7.3253]
[1720749926684,15.4759,136.59,136.54,7.3237]
[1720749926892,15.4759,136.59,136.55,7.3232]
[1720749927184,14.45,136.57,136.55,7.3232]
[1720749927390,14.45,136.57,136.54,25.6328]
[1720749927609,14.45,136.57,136.54,18.3091]
[1720749928107,29.9259,136.59,136.55,7.3229]
[1720749928708,15.4759,136.59,136.55,7.3229]
[1720749928901,15.4759,136.59,136.55,7.3231]
[1720749930894,15.4759,136.59,136.54,25.6327]
[1720749932311,15.4759,136.59,136.55,7.3229]
[1720749933219,15.4759,136.59,136.54,18.3091]
[1720749933717,15.4759,136.59,136.54,25.6329]
[1720749934891,7.65583069,136.61,136.54,18.3091]
[1720749935114,9.53492229,136.6,136.54,18.3091]
[1720749935311,7.65583069,136.61,136.54,18.3091]
[1720749935312,9.53492229,136.59,136.54,18.3091]
[1720749935513,7.65583069,136.61,136.54,18.3091]
[1720749935698,9.53483472,136.6,136.54,18.3091]